[Event "*** Titled Tuesday Blitz"]
[Site "Chess.com"]
[Date "2021.02.16"]
[Round "8"]
[White "tteshan"]
[Black "Kislov_Oleg"]
[Result "0-1"]
[WhiteElo "2358"]
[BlackElo "2541"]
[TimeControl "180+1"]
[EndTime "11:29:40 PST"]
[Termination "Kislov_Oleg won by resignation"]

1. d4 {[%clk 0:03:00.9]} 1... Nf6 {[%clk 0:02:58.8]} 2. c4 {[%clk 0:03:01.1]}
2... e6 {[%clk 0:02:58.6]} 3. Nc3 {[%clk 0:03:01.5]} 3... d5 {[%clk 0:02:57.3]}
4. cxd5 {[%clk 0:03:00.6]} 4... exd5 {[%clk 0:02:58.2]} 5. Bg5 {[%clk
0:03:00.7]} 5... Be7 {[%clk 0:02:57.9]} 6. e3 {[%clk 0:03:01.1]} 6... c6 {[%clk
0:02:57.1]} 7. Bd3 {[%clk 0:03:01.2]} 7... O-O {[%clk 0:02:57.1]} 8. Qc2 {[%clk
0:03:00.8]} 8... h6 {[%clk 0:02:56.7]} 9. Bh4 {[%clk 0:03:01.2]} 9... Re8 {[%clk
0:02:56.7]} 10. Nge2 {[%clk 0:03:01.8]} 10... Ne4 {[%clk 0:02:54.8]} 11. Bxe7
{[%clk 0:02:59.8]} 11... Qxe7 {[%clk 0:02:55.2]} 12. Bxe4 {[%clk 0:02:59.2]}
12... dxe4 {[%clk 0:02:54.2]} 13. O-O {[%clk 0:02:59]} 13... Nd7 {[%clk
0:02:53.5]} 14. Ng3 {[%clk 0:02:56.4]} 14... Nf6 {[%clk 0:02:52.8]} 15. Rfd1
{[%clk 0:02:56]} 15... h5 {[%clk 0:02:34.7]} 16. d5 {[%clk 0:02:52.8]} 16... h4
{[%clk 0:01:54.4]} 17. Nge2 {[%clk 0:02:45.8]} 17... h3 {[%clk 0:01:45.3]} 18.
g3 {[%clk 0:02:06]} 18... Bg4 {[%clk 0:01:28]} 19. Rd2 {[%clk 0:02:02.4]} 19...
Nd7 {[%clk 0:01:16.7]} 20. dxc6 {[%clk 0:01:51.8]} 20... Ne5 {[%clk 0:01:11.9]}
21. Nd4 {[%clk 0:01:36.8]} 21... Qf6 {[%clk 0:00:52.2]} 22. f4 {[%clk
0:01:00.8]} 22... exf3 {[%clk 0:00:45.5]} 23. Rf2 {[%clk 0:00:58.7]} 23... bxc6
{[%clk 0:00:42.2]} 24. Ne4 {[%clk 0:00:49]} 24... Qg6 {[%clk 0:00:37.9]} 25. Nc5
{[%clk 0:00:45.1]} 25... Qxc2 {[%clk 0:00:27.4]} 26. Nxc2 {[%clk 0:00:46]} 26...
Rad8 {[%clk 0:00:27.3]} 27. Kf1 {[%clk 0:00:31.8]} 27... Nc4 {[%clk 0:00:24.2]}
28. e4 {[%clk 0:00:22.9]} 28... Nd2+ {[%clk 0:00:20.9]} 29. Kg1 {[%clk
0:00:21.6]} 29... Nxe4 {[%clk 0:00:20.9]} 30. Nxe4 {[%clk 0:00:20.6]} 30... Rxe4
{[%clk 0:00:20.8]} 31. Re1 {[%clk 0:00:19.5]} 31... Re2 {[%clk 0:00:16.9]} 32.
Kf1 {[%clk 0:00:17.4]} 32... Rxf2+ {[%clk 0:00:15]} 33. Kxf2 {[%clk 0:00:17.5]}
33... Rd2+ {[%clk 0:00:15.7]} 34. Ke3 {[%clk 0:00:17.9]} 34... Rxc2 {[%clk
0:00:15.1]} 35. Kf4 {[%clk 0:00:18.5]} 35... f5 {[%clk 0:00:11.5]} 36. Kg5
{[%clk 0:00:08.2]} 36... Kh7 {[%clk 0:00:11.6]} 0-1

[Event "*** Titled Tuesday Blitz"]
[Site "Chess.com"]
[Date "2021.02.16"]
[Round "8"]
[White "Kanthecarowin"]
[Black "northridgehawk"]
[Result "0-1"]
[WhiteElo "2319"]
[BlackElo "2343"]
[TimeControl "180+1"]
[EndTime "11:29:41 PST"]
[Termination "northridgehawk won by resignation"]

1. d4 {[%clk 0:03:00.9]} 1... Nf6 {[%clk 0:02:56.6]} 2. c4 {[%clk 0:02:55.6]}
2... g6 {[%clk 0:02:56.3]} 3. Nc3 {[%clk 0:02:55]} 3... d5 {[%clk 0:02:56.6]} 4.
Nf3 {[%clk 0:02:54.5]} 4... Bg7 {[%clk 0:02:56.6]} 5. Bg5 {[%clk 0:02:53.3]}
5... dxc4 {[%clk 0:02:52.9]} 6. e4 {[%clk 0:02:49.1]} 6... c5 {[%clk 0:02:52]}
7. Bxc4 {[%clk 0:02:20]} 7... cxd4 {[%clk 0:02:45.6]} 8. Nxd4 {[%clk 0:02:13.2]}
8... Qa5 {[%clk 0:02:42.1]} 9. Bd2 {[%clk 0:02:09.4]} 9... Qb6 {[%clk 0:02:34]}
10. Bb5+ {[%clk 0:02:06.5]} 10... Nbd7 {[%clk 0:02:32.7]} 11. Be3 {[%clk
0:02:01.8]} 11... O-O {[%clk 0:02:20.1]} 12. O-O {[%clk 0:01:57.6]} 12... Ne5
{[%clk 0:02:16.1]} 13. a4 {[%clk 0:01:37]} 13... Rd8 {[%clk 0:02:13.9]} 14. Qb3
{[%clk 0:00:57.3]} 14... Rxd4 {[%clk 0:02:07.4]} 15. Ne2 {[%clk 0:00:38.3]}
15... Nc6 {[%clk 0:01:25.4]} 16. Nxd4 {[%clk 0:00:16.6]} 16... Nxd4 {[%clk
0:01:23.7]} 17. Qb4 {[%clk 0:00:17.5]} 17... Nc2 {[%clk 0:00:48.5]} 18. Bxb6
{[%clk 0:00:17.3]} 18... Nxb4 {[%clk 0:00:47.4]} 19. Bc5 {[%clk 0:00:18.2]}
19... Nc6 {[%clk 0:00:43.1]} 20. Bxc6 {[%clk 0:00:18.4]} 20... bxc6 {[%clk
0:00:44]} 21. Bxe7 {[%clk 0:00:19.1]} 21... Nxe4 {[%clk 0:00:43.6]} 22. Rfe1
{[%clk 0:00:19.6]} 22... Nf6 {[%clk 0:00:37.9]} 23. Rac1 {[%clk 0:00:19.5]}
23... Be6 {[%clk 0:00:35.3]} 24. Rxc6 {[%clk 0:00:19.1]} 24... Nd5 {[%clk
0:00:35.3]} 25. Ba3 {[%clk 0:00:18.9]} 25... Rb8 {[%clk 0:00:34.3]} 26. h4
{[%clk 0:00:18.5]} 26... Bxb2 {[%clk 0:00:33.1]} 27. Bxb2 {[%clk 0:00:18.2]}
27... Rxb2 {[%clk 0:00:34]} 28. g3 {[%clk 0:00:18.5]} 28... Ra2 {[%clk 0:00:34]}
29. Ra6 {[%clk 0:00:18.7]} 29... Nc3 {[%clk 0:00:31]} 30. Rxa7 {[%clk 0:00:19]}
30... Rxa4 {[%clk 0:00:31]} 31. Rxa4 {[%clk 0:00:19.4]} 31... Nxa4 {[%clk
0:00:31.9]} 32. Kg2 {[%clk 0:00:19.9]} 32... Kg7 {[%clk 0:00:32.3]} 33. f4
{[%clk 0:00:20.1]} 33... h5 {[%clk 0:00:33.2]} 34. Kf3 {[%clk 0:00:20.5]} 34...
Nc5 {[%clk 0:00:32]} 35. Rc1 {[%clk 0:00:20.2]} 35... Bd5+ {[%clk 0:00:31.8]}
36. Ke3 {[%clk 0:00:20.5]} 36... Ne6 {[%clk 0:00:31.7]} 37. Ra1 {[%clk
0:00:19.5]} 37... Bg2 {[%clk 0:00:31.6]} 38. Ra5 {[%clk 0:00:19.6]} 38... Bh3
{[%clk 0:00:32.5]} 39. Rg5 {[%clk 0:00:19.4]} 39... Bf5 {[%clk 0:00:32.1]} 40.
Kf3 {[%clk 0:00:18.7]} 40... f6 {[%clk 0:00:32]} 41. Rxf5 {[%clk 0:00:19]} 41...
gxf5 {[%clk 0:00:32.3]} 42. Ke3 {[%clk 0:00:19.9]} 42... Kf7 {[%clk 0:00:29.5]}
43. Kf3 {[%clk 0:00:20.8]} 43... Ng7 {[%clk 0:00:29.5]} 44. Ke3 {[%clk
0:00:21.7]} 44... Ke6 {[%clk 0:00:30]} 45. Kd3 {[%clk 0:00:22.6]} 45... Kd5
{[%clk 0:00:30.4]} 46. Ke3 {[%clk 0:00:23.5]} 46... Ne6 {[%clk 0:00:30.5]} 47.
Kd3 {[%clk 0:00:24.4]} 47... Nc5+ {[%clk 0:00:30.6]} 48. Ke3 {[%clk 0:00:25.3]}
48... Kc4 {[%clk 0:00:30.9]} 49. Kd2 {[%clk 0:00:25.9]} 49... Kd4 {[%clk
0:00:31.1]} 50. Ke2 {[%clk 0:00:25.8]} 50... Ke4 {[%clk 0:00:32]} 51. Kf2 {[%clk
0:00:26.2]} 51... Nd3+ {[%clk 0:00:31.8]} 52. Kg2 {[%clk 0:00:27.1]} 52... Ne5
{[%clk 0:00:31.8]} 53. fxe5 {[%clk 0:00:26.8]} 53... fxe5 {[%clk 0:00:30.9]} 54.
Kf2 {[%clk 0:00:27.7]} 54... f4 {[%clk 0:00:26.7]} 55. Ke2 {[%clk 0:00:28.6]}
55... fxg3 {[%clk 0:00:25.7]} 0-1

[Event "*** Titled Tuesday Blitz"]
[Site "Chess.com"]
[Date "2021.02.16"]
[Round "8"]
[White "annacramling"]
[Black "zurzan"]
[Result "1-0"]
[WhiteElo "2133"]
[BlackElo "2033"]
[TimeControl "180+1"]
[EndTime "11:29:42 PST"]
[Termination "annacramling won by checkmate"]

1. d4 {[%clk 0:03:00.9]} 1... d6 {[%clk 0:02:59.5]} 2. c4 {[%clk 0:03:00.8]}
2... f5 {[%clk 0:02:58.2]} 3. Nc3 {[%clk 0:02:59.2]} 3... Nf6 {[%clk 0:02:58.3]}
4. Nf3 {[%clk 0:02:50.3]} 4... g6 {[%clk 0:02:58.1]} 5. Qc2 {[%clk 0:02:48.9]}
5... Bg7 {[%clk 0:02:57.1]} 6. e4 {[%clk 0:02:44.9]} 6... fxe4 {[%clk
0:02:54.8]} 7. Nxe4 {[%clk 0:02:45.8]} 7... O-O {[%clk 0:02:49]} 8. Bd3 {[%clk
0:02:44.8]} 8... c6 {[%clk 0:02:46.3]} 9. O-O {[%clk 0:02:43.8]} 9... Qc7 {[%clk
0:02:43.1]} 10. Bd2 {[%clk 0:02:40.6]} 10... Nbd7 {[%clk 0:02:28.6]} 11. Rfe1
{[%clk 0:02:34]} 11... Nxe4 {[%clk 0:02:25.8]} 12. Bxe4 {[%clk 0:02:29.4]} 12...
Nf6 {[%clk 0:02:26.7]} 13. Bd3 {[%clk 0:02:27.7]} 13... Bg4 {[%clk 0:02:00.2]}
14. Ng5 {[%clk 0:02:21.5]} 14... Rae8 {[%clk 0:01:54.9]} 15. h3 {[%clk
0:02:08.5]} 15... Bc8 {[%clk 0:01:53.7]} 16. Bc3 {[%clk 0:01:11.6]} 16... e5
{[%clk 0:01:51.4]} 17. dxe5 {[%clk 0:01:09.4]} 17... dxe5 {[%clk 0:01:51.5]} 18.
c5 {[%clk 0:01:02.5]} 18... h6 {[%clk 0:01:37.6]} 19. Ne4 {[%clk 0:00:36.2]}
19... Nxe4 {[%clk 0:01:25.6]} 20. Bxe4 {[%clk 0:00:29]} 20... Bf5 {[%clk
0:01:25.4]} 21. g4 {[%clk 0:00:21.2]} 21... Bxe4 {[%clk 0:01:19.6]} 22. Qxe4
{[%clk 0:00:21.2]} 22... Re6 {[%clk 0:01:13.5]} 23. Rad1 {[%clk 0:00:19.2]}
23... Qf7 {[%clk 0:01:10.4]} 24. Re2 {[%clk 0:00:12.9]} 24... Rfe8 {[%clk
0:01:06.1]} 25. Rd6 {[%clk 0:00:12.2]} 25... Qf6 {[%clk 0:00:57]} 26. Qc4 {[%clk
0:00:05.9]} 26... Kh7 {[%clk 0:00:55.2]} 27. Rxe6 {[%clk 0:00:06.1]} 27... Rxe6
{[%clk 0:00:54.9]} 28. Qd3 {[%clk 0:00:03.9]} 28... Qh4 {[%clk 0:00:38.9]} 29.
b4 {[%clk 0:00:03.3]} 29... h5 {[%clk 0:00:35.7]} 30. gxh5 {[%clk 0:00:02]}
30... Qxh5 {[%clk 0:00:31.4]} 31. Re4 {[%clk 0:00:01.6]} 31... Kh6 {[%clk
0:00:11.2]} 32. Qg3 {[%clk 0:00:01.7]} 32... Qd1+ {[%clk 0:00:07.1]} 33. Kg2
{[%clk 0:00:01]} 33... Qd7 {[%clk 0:00:06.6]} 34. Rh4# {[%clk 0:00:01.1]} 1-0

[Event "*** Titled Tuesday Blitz"]
[Site "Chess.com"]
[Date "2021.02.16"]
[Round "8"]
[White "elextranjero00"]
[Black "szachuspl"]
[Result "1-0"]
[WhiteElo "2632"]
[BlackElo "2471"]
[TimeControl "180+1"]
[EndTime "11:29:43 PST"]
[Termination "elextranjero00 won by resignation"]

1. d4 {[%clk 0:03:00.9]} 1... Nf6 {[%clk 0:02:59.3]} 2. c4 {[%clk 0:03:01]} 2...
g6 {[%clk 0:02:59.5]} 3. Nc3 {[%clk 0:03:00.3]} 3... Bg7 {[%clk 0:03:00.1]} 4.
e4 {[%clk 0:03:00.5]} 4... O-O {[%clk 0:03:00.4]} 5. Be2 {[%clk 0:02:55.8]} 5...
d6 {[%clk 0:03:00.5]} 6. Be3 {[%clk 0:02:55.9]} 6... Na6 {[%clk 0:02:58.7]} 7.
Nf3 {[%clk 0:02:54.6]} 7... e5 {[%clk 0:02:58.4]} 8. O-O {[%clk 0:02:54.2]} 8...
c6 {[%clk 0:02:55.3]} 9. h3 {[%clk 0:02:44.2]} 9... Qe7 {[%clk 0:02:54.7]} 10.
d5 {[%clk 0:02:40.8]} 10... c5 {[%clk 0:02:43.2]} 11. Bg5 {[%clk 0:02:29.2]}
11... h6 {[%clk 0:02:43]} 12. Bd2 {[%clk 0:02:29]} 12... Nh5 {[%clk 0:02:40.6]}
13. Ne1 {[%clk 0:02:22.3]} 13... Nf4 {[%clk 0:02:40.2]} 14. Nd3 {[%clk
0:02:22.5]} 14... Nxe2+ {[%clk 0:02:27.5]} 15. Qxe2 {[%clk 0:02:22.1]} 15... Bd7
{[%clk 0:02:27.6]} 16. a3 {[%clk 0:02:18.8]} 16... f5 {[%clk 0:02:26.2]} 17.
exf5 {[%clk 0:02:01.2]} 17... gxf5 {[%clk 0:02:20.2]} 18. f4 {[%clk 0:02:01.3]}
18... e4 {[%clk 0:02:18.9]} 19. Nf2 {[%clk 0:01:57.7]} 19... Rae8 {[%clk
0:02:14.9]} 20. Be3 {[%clk 0:01:57.2]} 20... Bxc3 {[%clk 0:02:10.1]} 21. bxc3
{[%clk 0:01:50.8]} 21... Qg7 {[%clk 0:02:10.2]} 22. Rac1 {[%clk 0:01:41.7]}
22... Nc7 {[%clk 0:02:07.7]} 23. Kh2 {[%clk 0:01:39.4]} 23... Kh7 {[%clk
0:02:06.2]} 24. Rg1 {[%clk 0:01:34.5]} 24... b5 {[%clk 0:02:06]} 25. cxb5 {[%clk
0:01:20.5]} 25... Nxd5 {[%clk 0:01:40.4]} 26. c4 {[%clk 0:01:15.8]} 26... Nb6
{[%clk 0:01:40.2]} 27. g4 {[%clk 0:01:02.2]} 27... Qf7 {[%clk 0:01:39.3]} 28. g5
{[%clk 0:00:59]} 28... Rg8 {[%clk 0:01:37.5]} 29. gxh6 {[%clk 0:00:54.6]} 29...
Be6 {[%clk 0:01:35]} 30. Rg5 {[%clk 0:00:36]} 30... Rxg5 {[%clk 0:01:26.6]} 31.
fxg5 {[%clk 0:00:36.2]} 31... f4 {[%clk 0:01:25.1]} 32. Nxe4 {[%clk 0:00:27.1]}
32... fxe3 {[%clk 0:01:22.7]} 33. Nf6+ {[%clk 0:00:25.7]} 33... Kh8 {[%clk
0:01:14.8]} 34. Qxe3 {[%clk 0:00:19.1]} 34... Bd7 {[%clk 0:01:10.5]} 35. Nxe8
{[%clk 0:00:18.4]} 35... Qxe8 {[%clk 0:01:07]} 36. Qc3+ {[%clk 0:00:16.7]} 36...
Qe5+ {[%clk 0:01:06.1]} 37. Qxe5+ {[%clk 0:00:17]} 37... dxe5 {[%clk 0:01:06.2]}
38. g6 {[%clk 0:00:16.2]} 38... Bf5 {[%clk 0:00:58.2]} 39. g7+ {[%clk
0:00:13.8]} 39... Kh7 {[%clk 0:00:58.5]} 40. Rf1 {[%clk 0:00:13.9]} 40... Be6
{[%clk 0:00:57.8]} 41. Rf8 {[%clk 0:00:12.2]} 41... Bxc4 {[%clk 0:00:53.3]} 42.
Rh8+ {[%clk 0:00:11.7]} 42... Kg6 {[%clk 0:00:53.5]} 43. h4 {[%clk 0:00:07.1]}
43... e4 {[%clk 0:00:48.1]} 44. h5+ {[%clk 0:00:07.5]} 44... Kf6 {[%clk
0:00:43.6]} 45. Rf8+ {[%clk 0:00:06]} 45... Ke7 {[%clk 0:00:40.8]} 46. h7 {[%clk
0:00:06.6]} 46... e3 {[%clk 0:00:41.2]} 47. h8=Q {[%clk 0:00:06.9]} 47... e2
{[%clk 0:00:41.7]} 48. Re8+ {[%clk 0:00:07.3]} 48... Kd6 {[%clk 0:00:41.1]} 49.
Rxe2 {[%clk 0:00:06.7]} 49... Bxe2 {[%clk 0:00:40.9]} 50. g8=Q {[%clk
0:00:06.5]} 1-0

[Event "*** Titled Tuesday Blitz"]
[Site "Chess.com"]
[Date "2021.02.16"]
[Round "8"]
[White "abeljusto"]
[Black "LamaChampetre"]
[Result "1/2-1/2"]
[WhiteElo "2017"]
[BlackElo "2197"]
[TimeControl "180+1"]
[EndTime "11:29:44 PST"]
[Termination "Game drawn by repetition"]

1. d4 {[%clk 0:03:00.9]} 1... Nf6 {[%clk 0:02:59.6]} 2. Bf4 {[%clk 0:03:00.9]}
2... g6 {[%clk 0:02:59.5]} 3. Nc3 {[%clk 0:02:56.3]} 3... d5 {[%clk 0:02:58.5]}
4. e3 {[%clk 0:02:55.6]} 4... Bg7 {[%clk 0:02:57.5]} 5. Nf3 {[%clk 0:02:55.7]}
5... O-O {[%clk 0:02:54.3]} 6. Be2 {[%clk 0:02:53.6]} 6... c5 {[%clk 0:02:53.6]}
7. Ne5 {[%clk 0:02:52.2]} 7... Nc6 {[%clk 0:02:51.4]} 8. Nxc6 {[%clk 0:02:48.8]}
8... bxc6 {[%clk 0:02:50.9]} 9. O-O {[%clk 0:02:43.2]} 9... cxd4 {[%clk
0:02:50.2]} 10. exd4 {[%clk 0:02:42.6]} 10... Ne4 {[%clk 0:02:35.2]} 11. Nxe4
{[%clk 0:02:40.7]} 11... dxe4 {[%clk 0:02:35.1]} 12. c3 {[%clk 0:02:41.2]} 12...
Qb6 {[%clk 0:02:28.5]} 13. Qd2 {[%clk 0:02:40.6]} 13... Rd8 {[%clk 0:02:16.9]}
14. b4 {[%clk 0:02:40]} 14... Be6 {[%clk 0:02:11.2]} 15. Qe3 {[%clk 0:02:38.7]}
15... a5 {[%clk 0:02:04.5]} 16. a3 {[%clk 0:02:37.6]} 16... Bd5 {[%clk 0:01:35]}
17. Rfd1 {[%clk 0:02:23]} 17... Bb3 {[%clk 0:01:17.2]} 18. Rdb1 {[%clk
0:02:16.5]} 18... Bc2 {[%clk 0:01:09.7]} 19. Rc1 {[%clk 0:02:15.8]} 19... Bd3
{[%clk 0:01:09.9]} 20. Bxd3 {[%clk 0:02:13.4]} 20... exd3 {[%clk 0:01:10.8]} 21.
Qxd3 {[%clk 0:02:13]} 21... e5 {[%clk 0:01:11]} 22. Bg5 {[%clk 0:02:07.8]} 22...
Rd5 {[%clk 0:00:51.8]} 23. Be3 {[%clk 0:01:34.7]} 23... exd4 {[%clk 0:00:50.8]}
24. cxd4 {[%clk 0:01:32.1]} 24... axb4 {[%clk 0:00:42.8]} 25. axb4 {[%clk
0:01:30.1]} 25... Rxa1 {[%clk 0:00:41.9]} 26. Rxa1 {[%clk 0:01:30.1]} 26... Qxb4
{[%clk 0:00:41.5]} 27. h3 {[%clk 0:01:20.2]} 27... Qb8 {[%clk 0:00:36.7]} 28.
Qc4 {[%clk 0:01:18.6]} 28... Qe8 {[%clk 0:00:20.8]} 29. Ra6 {[%clk 0:00:58.7]}
29... Rd6 {[%clk 0:00:19.4]} 30. Qa4 {[%clk 0:00:56.2]} 30... h5 {[%clk
0:00:17.7]} 31. Ra8 {[%clk 0:00:54.5]} 31... Rd8 {[%clk 0:00:02.1]} 32. Rxd8
{[%clk 0:00:53.1]} 32... Qxd8 {[%clk 0:00:03]} 33. Qxc6 {[%clk 0:00:52.6]} 33...
Bxd4 {[%clk 0:00:02.9]} 34. Bxd4 {[%clk 0:00:45.4]} 34... Qxd4 {[%clk
0:00:03.8]} 35. Qf3 {[%clk 0:00:40]} 35... Kg7 {[%clk 0:00:04.7]} 36. g3 {[%clk
0:00:39]} 36... Qa1+ {[%clk 0:00:04.8]} 37. Kg2 {[%clk 0:00:38.4]} 37... Qf6
{[%clk 0:00:05.7]} 38. Qd3 {[%clk 0:00:35.6]} 38... Qe6 {[%clk 0:00:05.4]} 39.
Qf3 {[%clk 0:00:35.1]} 39... Qf6 {[%clk 0:00:06.3]} 40. Qxf6+ {[%clk 0:00:34.5]}
40... Kxf6 {[%clk 0:00:06.2]} 41. h4 {[%clk 0:00:35.4]} 41... Kf5 {[%clk
0:00:04.7]} 42. Kf3 {[%clk 0:00:36.3]} 42... g5 {[%clk 0:00:04.4]} 43. hxg5
{[%clk 0:00:35.6]} 43... Kxg5 {[%clk 0:00:05.3]} 44. Kg2 {[%clk 0:00:33.1]}
44... h4 {[%clk 0:00:05.2]} 45. gxh4+ {[%clk 0:00:32.7]} 45... Kxh4 {[%clk
0:00:06.1]} 46. Kf3 {[%clk 0:00:32.5]} 46... Kg5 {[%clk 0:00:06.6]} 47. Kg3
{[%clk 0:00:32.1]} 47... Kf5 {[%clk 0:00:07.5]} 48. Kf3 {[%clk 0:00:32]} 48...
Kg5 {[%clk 0:00:08.3]} 49. Kg3 {[%clk 0:00:31.7]} 49... Kf5 {[%clk 0:00:09.2]}
50. Kf3 {[%clk 0:00:32]} 50... Kg5 {[%clk 0:00:10.1]} 1/2-1/2

[Event "*** Titled Tuesday Blitz"]
[Site "Chess.com"]
[Date "2021.02.16"]
[Round "8"]
[White "frederiksvane"]
[Black "MITerryble"]
[Result "0-1"]
[WhiteElo "2716"]
[BlackElo "2936"]
[TimeControl "180+1"]
[EndTime "11:29:45 PST"]
[Termination "MITerryble won by resignation"]

1. e4 {[%clk 0:03:00.9]} 1... e6 {[%clk 0:03:00.2]} 2. d4 {[%clk 0:03:00.9]}
2... d5 {[%clk 0:03:00.5]} 3. Nd2 {[%clk 0:03:01.3]} 3... Be7 {[%clk 0:03:00.5]}
4. c3 {[%clk 0:02:57.7]} 4... c5 {[%clk 0:02:59.9]} 5. exd5 {[%clk 0:02:57.7]}
5... Qxd5 {[%clk 0:02:59.4]} 6. Ngf3 {[%clk 0:02:55]} 6... Nf6 {[%clk
0:02:56.3]} 7. Bc4 {[%clk 0:02:53.1]} 7... Qh5 {[%clk 0:02:55.9]} 8. O-O {[%clk
0:02:51]} 8... cxd4 {[%clk 0:02:55.5]} 9. Nxd4 {[%clk 0:02:50.2]} 9... Qxd1
{[%clk 0:02:56.4]} 10. Rxd1 {[%clk 0:02:50.7]} 10... Bd7 {[%clk 0:02:39.9]} 11.
N2f3 {[%clk 0:02:45.5]} 11... Nc6 {[%clk 0:02:37.8]} 12. Bf4 {[%clk 0:02:34.8]}
12... a6 {[%clk 0:02:27.3]} 13. Ne5 {[%clk 0:02:25.2]} 13... Nxe5 {[%clk
0:02:23]} 14. Bxe5 {[%clk 0:02:26.1]} 14... O-O-O {[%clk 0:02:05.4]} 15. a4
{[%clk 0:02:15.4]} 15... Ng4 {[%clk 0:02:02.6]} 16. Bg3 {[%clk 0:02:08.3]} 16...
h5 {[%clk 0:02:00.5]} 17. h3 {[%clk 0:01:50]} 17... h4 {[%clk 0:01:41.9]} 18.
Bf4 {[%clk 0:01:49.8]} 18... g5 {[%clk 0:01:41.7]} 19. Bc1 {[%clk 0:01:26.7]}
19... Ne5 {[%clk 0:01:41.1]} 20. Bb3 {[%clk 0:01:27.1]} 20... g4 {[%clk
0:01:30.4]} 21. hxg4 {[%clk 0:01:21.8]} 21... Nxg4 {[%clk 0:01:31.3]} 22. f3
{[%clk 0:01:19.8]} 22... Ne5 {[%clk 0:01:19.7]} 23. Bf4 {[%clk 0:01:07.1]} 23...
Bf6 {[%clk 0:01:19.5]} 24. Kf2 {[%clk 0:01:00.2]} 24... Rdg8 {[%clk 0:01:18]}
25. Bh2 {[%clk 0:00:51]} 25... Rg7 {[%clk 0:01:12.4]} 26. Ne2 {[%clk 0:00:42.7]}
26... Rhg8 {[%clk 0:01:00.1]} 27. Nf4 {[%clk 0:00:42.7]} 27... Bc6 {[%clk
0:00:58.6]} 28. Rg1 {[%clk 0:00:37.9]} 28... h3 {[%clk 0:00:38]} 29. gxh3 {[%clk
0:00:08.3]} 29... Bh4+ {[%clk 0:00:37.9]} 30. Ke3 {[%clk 0:00:05.7]} 30... Nxf3
{[%clk 0:00:37.9]} 31. Rxg7 {[%clk 0:00:04.4]} 31... Rxg7 {[%clk 0:00:38.8]} 32.
Rh1 {[%clk 0:00:02.2]} 32... Nd4 {[%clk 0:00:26.8]} 33. Rb1 {[%clk 0:00:01.2]}
33... Nxb3 {[%clk 0:00:26.7]} 34. Nh5 {[%clk 0:00:01.5]} 34... Rg2 {[%clk
0:00:25.5]} 35. Bf4 {[%clk 0:00:01.9]} 35... Nd2 {[%clk 0:00:20.8]} 36. Rd1
{[%clk 0:00:01.8]} 36... Nc4+ {[%clk 0:00:21.1]} 37. Kd4 {[%clk 0:00:02.4]}
37... Nxb2 {[%clk 0:00:21.3]} 38. Rb1 {[%clk 0:00:03]} 38... Bf2+ {[%clk
0:00:19.8]} 0-1

[Event "*** Titled Tuesday Blitz"]
[Site "Chess.com"]
[Date "2021.02.16"]
[Round "8"]
[White "Aygehovit1992"]
[Black "seorobert1971"]
[Result "0-1"]
[WhiteElo "2590"]
[BlackElo "2720"]
[TimeControl "180+1"]
[EndTime "11:29:45 PST"]
[Termination "seorobert1971 won by checkmate"]

1. e4 {[%clk 0:03:00.9]} 1... e5 {[%clk 0:02:58.2]} 2. Nf3 {[%clk 0:03:01.1]}
2... Nc6 {[%clk 0:02:59.1]} 3. Bb5 {[%clk 0:03:01.4]} 3... Nf6 {[%clk
0:02:58.9]} 4. d3 {[%clk 0:03:01]} 4... Bc5 {[%clk 0:02:58.3]} 5. Bxc6 {[%clk
0:03:00.4]} 5... dxc6 {[%clk 0:02:59.2]} 6. Nbd2 {[%clk 0:03:00]} 6... Be6
{[%clk 0:02:55.9]} 7. Nb3 {[%clk 0:02:58.7]} 7... Bd6 {[%clk 0:02:55.2]} 8. h3
{[%clk 0:02:58]} 8... Nd7 {[%clk 0:02:51.9]} 9. d4 {[%clk 0:02:54.8]} 9... O-O
{[%clk 0:02:47.5]} 10. O-O {[%clk 0:02:52.7]} 10... exd4 {[%clk 0:02:44.8]} 11.
Nbxd4 {[%clk 0:02:51.3]} 11... Bc4 {[%clk 0:02:44.6]} 12. Re1 {[%clk 0:02:50]}
12... Ne5 {[%clk 0:02:42.7]} 13. Nf5 {[%clk 0:02:48.9]} 13... Nxf3+ {[%clk
0:02:37]} 14. Qxf3 {[%clk 0:02:49.8]} 14... Be5 {[%clk 0:02:34.7]} 15. Bf4
{[%clk 0:02:48.4]} 15... Bxb2 {[%clk 0:02:27.3]} 16. Rad1 {[%clk 0:02:47.2]}
16... Qf6 {[%clk 0:02:26.2]} 17. Bxc7 {[%clk 0:02:44.6]} 17... Be6 {[%clk
0:02:14]} 18. Rd3 {[%clk 0:01:48.6]} 18... Be5 {[%clk 0:02:05.2]} 19. Bxe5
{[%clk 0:01:43.1]} 19... Qxe5 {[%clk 0:02:05]} 20. Nd6 {[%clk 0:01:22.6]} 20...
b5 {[%clk 0:01:59.6]} 21. Qe3 {[%clk 0:01:21.6]} 21... g5 {[%clk 0:01:36]} 22.
Nf5 {[%clk 0:01:17.2]} 22... Qf6 {[%clk 0:01:29.5]} 23. Rd6 {[%clk 0:01:15.2]}
23... Rfc8 {[%clk 0:01:24.3]} 24. Qc5 {[%clk 0:01:10]} 24... h6 {[%clk
0:01:11.7]} 25. Red1 {[%clk 0:00:59.7]} 25... a5 {[%clk 0:01:07.8]} 26. a3
{[%clk 0:00:56.3]} 26... Rab8 {[%clk 0:01:04.8]} 27. Rxc6 {[%clk 0:00:54.1]}
27... Rxc6 {[%clk 0:01:03.7]} 28. Qxc6 {[%clk 0:00:47.4]} 28... b4 {[%clk
0:01:00.1]} 29. axb4 {[%clk 0:00:46.2]} 29... axb4 {[%clk 0:01:01]} 30. Qd6
{[%clk 0:00:42.4]} 30... Re8 {[%clk 0:00:55.1]} 31. g3 {[%clk 0:00:29.7]} 31...
Kh7 {[%clk 0:00:54.4]} 32. Nd4 {[%clk 0:00:21.1]} 32... Rd8 {[%clk 0:00:48.9]}
33. Qxb4 {[%clk 0:00:20.8]} 33... Bxh3 {[%clk 0:00:48.5]} 34. Rd3 {[%clk
0:00:17.4]} 34... Ra8 {[%clk 0:00:42.1]} 35. Qe1 {[%clk 0:00:16.3]} 35... Ra4
{[%clk 0:00:36.5]} 36. e5 {[%clk 0:00:14.2]} 36... Qg6 {[%clk 0:00:34.5]} 37.
Qe3 {[%clk 0:00:05]} 37... Ra1+ {[%clk 0:00:29.8]} 38. Kh2 {[%clk 0:00:05.2]}
38... Qh5 {[%clk 0:00:29.8]} 39. Qf3 {[%clk 0:00:01.9]} 39... Bg4+ {[%clk
0:00:28.1]} 40. Kg2 {[%clk 0:00:01.1]} 40... Qh1# {[%clk 0:00:27.4]} 0-1